[Event "VI Sunway Sitges Open 2019"]
[Site "Sitges"]
[Date "2019.12.15"]
[Round "3.45"]
[White "Gordon, Stephen J"]
[Black "Samant Aditya S"]
[Result "1-0"]
[ECO "E14"]
[WhiteElo "2495"]
[BlackElo "2309"]
[Annotator "ChessBase"]
[PlyCount "71"]
[EventDate "2019.12.13"]
[EventType "swiss"]
[EventCountry "ESP"]
[SourceTitle "playchess.com"]
[Source "ChessBase"]
[SourceQuality "1"]
[TimeControl "40/5400+30:1800+30"]

1. d4 {[%emt 0:00:00]} Nf6 {[%emt 0:00:00]} 2. c4 {[%emt 0:00:00]} e6 {[%emt 0:00:00]} 3. Nf3 {[%emt 0:00:03]} Bb4+ {[%emt 0:00:00]} 4. Nbd2 {[%emt 0:00:21]} b6 {[%emt 0:00:12]} 5. a3 {[%emt 0:00:21]} Bxd2+ {[%emt 0:00:14]} 6. Qxd2 {[%emt 0:00:02]} Bb7 {[%emt 0:00:12]} 7. e3 {[%emt 0:00:32]} O-O {[%emt 0:00:55]} 8. Be2 {[%emt 0:00:25]} a5 {[%emt 0:00:50]} 9. b3 {[%emt 0:00:10]} d6 {[%emt 0:00:07]} 10. O-O {[%emt 0:01:03]} Nbd7 {[%emt 0:00:28]} 11. Bb2 {[%emt 0:00:33]} Qe7 {[%emt 0:02:10]} 12. Rad1 {[%emt 0:10:11]} Ne4 {[%emt 0:12:26]} 13. Qc2 {[%emt 0:00:00]} f5 {[%emt 0:00:16]} 14. d5 {[%emt 0:00:00]} e5 {[%emt 0:00:29]} 15. Nd2 {[%emt 0:03:48]} Nxd2 {[%emt 0:02:40]} 16. Rxd2 {[%emt 0:00:23]} Qg5 {[%emt 0:12:25]} 17. f4 {[%emt 0:03:51]} Qh6 {[%emt 0:06:08]} 18. Bd3 {[%emt 0:01:46]} g6 {[%emt 0:03:30]} 19. b4 {[%emt 0:17:13]} axb4 {[%emt 0:11:05]} 20. axb4 {[%emt 0:00:02]} Rae8 {[%emt 0:02:02]} 21. Rdd1 {[%emt 0:10:11]} Nf6 {[%emt 0:15:57]} 22. h3 {[%emt 0:00:02]} Qh4 {[%emt 0:02:58]} 23. Ra1 {[%emt 0:12:01]} Qg3 {[%emt 0:16:56]} 24. Rf3 {[%emt 0:04:40]} Qh4 {[%emt 0:00:10]} 25. Bf1 {[%emt 0:01:54]} c6 {[%emt 0:03:49]} 26. Ra7 {[%emt 0:01:22]} Rf7 {[%emt 0:00:11]} 27. c5 {[%emt 0:13:50]} Nxd5 {[%emt 0:04:41]} 28. cxd6 {[%emt 0:00:22]} e4 {[%emt 0:02:25]} 29. Rf2 {[%emt 0:00:29]} Nxe3 {[%emt 0:00:40]} 30. Qb3 {[%emt 0:11:56]} Nd5 {[%emt 0:00:26]} 31. b5 {[%emt 0:00:40]} e3 {[%emt 0:00:33]} 32. Re2 {[%emt 0:01:45]} Nxf4 {[%emt 0:00:32]} 33. Rxb7 {[%emt 0:00:56]} Nxe2+ {[%emt 0:00:19]} 34. Bxe2 {[%emt 0:00:13]} Qe1+ {[%emt 0:00:38]} 35. Kh2 {[%emt 0:00:58]} Ref8 {[%emt 0:00:10]} 36. Rxf7 {[%emt 0:00:49]} 1-0

[Event "VI Sunway Sitges Open 2019"]
[Site "Sitges"]
[Date "2019.12.15"]
[Round "3.46"]
[White "Krishnater Kushager"]
[Black "Zanan, Evgeny"]
[Result "1/2-1/2"]
[ECO "E90"]
[WhiteElo "2308"]
[BlackElo "2493"]
[Annotator "ChessBase"]
[PlyCount "100"]
[EventDate "2019.12.13"]
[EventType "swiss"]
[EventCountry "ESP"]
[SourceTitle "playchess.com"]
[Source "ChessBase"]
[SourceQuality "1"]
[TimeControl "40/5400+30:1800+30"]

1. d4 {[%emt 0:00:00]} Nf6 {[%emt 0:04:26]} 2. c4 {[%emt 0:00:00]} g6 {[%emt 0:01:06]} 3. Nc3 {[%emt 0:00:00]} Bg7 {[%emt 0:00:42]} 4. e4 {[%emt 0:00:00]} d6 {[%emt 0:00:03]} 5. Nf3 {[%emt 0:00:00]} O-O {[%emt 0:00:08]} 6. h3 {[%emt 0:00:00]} e5 {[%emt 0:00:04]} 7. d5 {[%emt 0:00:01]} a5 {[%emt 0:00:02]} 8. Be3 {[%emt 0:00:13]} Na6 {[%emt 0:00:05]} 9. g4 {[%emt 0:00:09]} Nd7 {[%emt 0:01:05]} 10. a3 {[%emt 0:00:17]} Nb6 {[%emt 0:00:17]} 11. Rg1 {[%emt 0:01:51]} Bd7 {[%emt 0:16:36]} 12. h4 {[%emt 0:00:47]} Nc5 {[%emt 0:00:24]} 13. b3 {[%emt 0:01:08]} a4 {[%emt 0:07:41]} 14. b4 {[%emt 0:00:58]} Nb3 {[%emt 0:00:03]} 15. Ra2 {[%emt 0:13:20]} c5 {[%emt 0:09:23]} 16. dxc6 {[%emt 0:01:44]} Bxc6 {[%emt 0:10:39]} 17. b5 {[%emt 0:01:08]} Be8 {[%emt 0:09:06]} 18. Nxa4 {[%emt 0:01:02]} Nxa4 {[%emt 0:03:04]} 19. Qxb3 {[%emt 0:01:07]} Nc5 {[%emt 0:00:04]} 20. Qc2 {[%emt 0:10:07]} Bd7 {[%emt 0:02:39]} 21. Be2 {[%emt 0:03:00]} Qc8 {[%emt 0:04:45]} 22. Nd2 {[%emt 0:05:35]} Kh8 {[%emt 0:03:55]} 23. Nb3 {[%emt 0:04:42]} Na4 {[%emt 0:08:08]} 24. Qd3 {[%emt 0:04:59]} Be6 {[%emt 0:00:09]} 25. h5 {[%emt 0:04:08]} Qc7 {[%emt 0:02:45]} 26. Rh1 {[%emt 0:06:48]} Rfc8 {[%emt 0:04:20]} 27. Rc2 {[%emt 0:04:52]} Nb6 {[%emt 0:00:28]} 28. Nd2 {[%emt 0:01:18]} Nd7 {[%emt 0:00:20]} 29. hxg6 {[%emt 0:04:02]} fxg6 {[%emt 0:00:02]} 30. Bh6 {[%emt 0:00:05]} Nc5 {[%emt 0:04:23]} 31. Qe3 {[%emt 0:02:45]} Bxh6 {[%emt 0:00:43]} 32. Rxh6 {[%emt 0:00:33]} Qg7 {[%emt 0:01:06]} 33. Rh2 {[%emt 0:03:43]} Bg8 {[%emt 0:01:34]} 34. Rc3 {[%emt 0:04:04]} Ne6 {[%emt 0:00:52]} 35. Qh6 {[%emt 0:02:25]} Qxh6 {[%emt 0:02:54]} 36. Rxh6 {[%emt 0:00:05]} Nd4 {[%emt 0:00:03]} 37. Rhh3 {[%emt 0:00:42]} Rc7 {[%emt 0:01:13]} 38. g5 {[%emt 0:04:36]} Be6 {[%emt 0:00:50]} 39. Rhg3 {[%emt 0:01:14]} Rac8 {[%emt 0:00:17]} 40. a4 {[%emt 0:00:00]} b6 {[%emt 0:00:00]} 41. Rc1 {[%emt 0:13:55]} Kg7 {[%emt 0:12:22]} 42. Bd1 {[%emt 0:01:03]} h6 {[%emt 0:02:07]} 43. gxh6+ {[%emt 0:01:43]} Kxh6 {[%emt 0:00:01]} 44. Rgc3 {[%emt 0:06:34]} Kg5 {[%emt 0:02:14]} 45. Nf3+ {[%emt 0:00:20]} Kf6 {[%emt 0:03:47]} 46. Kd2 {[%emt 0:03:05]} Bg4 {[%emt 0:05:56]} 47. Ne1 {[%emt 0:03:42]} Bxd1 {[%emt 0:02:22]} 48. Kxd1 {[%emt 0:00:15]} Ra7 {[%emt 0:00:35]} 49. Ra3 {[%emt 0:00:52]} Rac7 {[%emt 0:00:25]} 50. Rac3 {[%emt 0:00:08]} Ra7 {[%emt 0:00:05]} 1/2-1/2

[Event "VI Sunway Sitges Open 2019"]
[Site "Sitges"]
[Date "2019.12.15"]
[Round "3.47"]
[White "Papadiamandis, Elliot"]
[Black "Gines Esteo, Pedro Antonio"]
[Result "1/2-1/2"]
[ECO "B19"]
[WhiteElo "2284"]
[BlackElo "2483"]
[Annotator "ChessBase"]
[PlyCount "61"]
[EventDate "2019.12.13"]
[EventType "swiss"]
[EventCountry "ESP"]
[SourceTitle "playchess.com"]
[Source "ChessBase"]
[SourceQuality "1"]
[TimeControl "40/5400+30:1800+30"]

1. e4 {[%emt 0:01:41]} c6 {[%emt 0:00:00]} 2. d4 {[%emt 0:00:18]} d5 {[%emt 0:00:00]} 3. Nc3 {[%emt 0:00:00]} dxe4 {[%emt 0:00:02]} 4. Nxe4 {[%emt 0:00:00]} Bf5 {[%emt 0:00:06]} 5. Ng3 {[%emt 0:00:00]} Bg6 {[%emt 0:00:12]} 6. h4 {[%emt 0:00:00]} h6 {[%emt 0:00:03]} 7. Nf3 {[%emt 0:00:04]} Nd7 {[%emt 0:00:08]} 8. h5 {[%emt 0:00:43]} Bh7 {[%emt 0:00:09]} 9. Bd3 {[%emt 0:00:13]} Bxd3 {[%emt 0:00:08]} 10. Qxd3 {[%emt 0:00:09]} e6 {[%emt 0:00:44]} 11. Bd2 {[%emt 0:00:45]} Ngf6 {[%emt 0:00:00]} 12. O-O-O {[%emt 0:00:28]} a5 {[%emt 0:03:21]} 13. Rhe1 {[%emt 0:02:49]} Be7 {[%emt 0:03:50]} 14. Kb1 {[%emt 0:01:21]} O-O {[%emt 0:03:16]} 15. Bc1 {[%emt 0:01:37]} a4 {[%emt 0:00:00]} 16. a3 {[%emt 0:05:37]} Qb6 {[%emt 0:09:17]} 17. Nf5 {[%emt 0:04:21]} exf5 {[%emt 0:06:34]} 18. Rxe7 {[%emt 0:00:22]} Qd8 {[%emt 0:00:04]} 19. Re2 {[%emt 0:01:41]} Ne4 {[%emt 0:04:19]} 20. g4 {[%emt 0:04:03]} fxg4 {[%emt 0:06:07]} 21. Rxe4 {[%emt 0:01:12]} gxf3 {[%emt 0:00:08]} 22. Rg1 {[%emt 0:02:30]} f5 {[%emt 0:12:15]} 23. Re6 {[%emt 0:06:43]} Rf6 {[%emt 0:15:51]} 24. Rxf6 {[%emt 0:05:15]} Nxf6 {[%emt 0:00:17]} 25. Qxf5 {[%emt 0:02:31]} Ra5 {[%emt 0:09:08]} 26. Qg6 {[%emt 0:03:17]} Nxh5 {[%emt 0:05:41]} 27. Bxh6 {[%emt 0:02:52]} Qf8 {[%emt 0:00:45]} 28. Re1 {[%emt 0:13:49]} Nf6 {[%emt 0:00:18]} 29. Rg1 {[%emt 0:03:21]} Nh5 {[%emt 0:00:05]} 30. Re1 {[%emt 0:00:09]} Nf6 {[%emt 0:00:07]} 31. Rg1 {[%emt 0:09:03]} 1/2-1/2

[Event "VI Sunway Sitges Open 2019"]
[Site "Sitges"]
[Date "2019.12.15"]
[Round "3.49"]
[White "Backiel, Hubert"]
[Black "Meers, Hubert"]
[Result "0-1"]
[ECO "B50"]
[WhiteElo "1860"]
[BlackElo "2161"]
[Annotator "NA"]
[PlyCount "93"]
[EventDate "2019.12.13"]
[EventType "swiss"]
[EventCountry "ESP"]
[SourceTitle "playchess.com"]
[Source "ChessBase"]
[SourceQuality "1"]
[TimeControl "40/5400+30:1800+30"]

1. e4 {[%emt 0:00:03]} c5 {[%emt 0:00:33]} 2. Nf3 {[%emt 0:00:58]} d6 {[%emt 0:00:16]} 3. Nc3 {[%emt 0:00:12]} Nf6 {[%emt 0:01:51]} 4. g3 {[%emt 0:01:06]} a6 {[%emt 0:01:27]} 5. Bg2 {[%emt 0:00:25]} e5 6. O-O {[%emt 0:19:19]} Be7 {[%emt 0:00:11]} 7. d3 {[%emt 0:01:08]} b5 {[%emt 0:04:49]} 8. a4 {[%emt 0:01:10]} b4 {[%emt 0:00:07]} 9. Nb1 {[%emt 0:00:54]} O-O {[%emt 0:03:05]} 10. Nbd2 {[%emt 0:00:40]} Nc6 {[%emt 0:03:41]} 11. b3 {[%emt 0:02:23]} Ne8 {[%emt 0:13:17]} 12. Nc4 {[%emt 0:06:08]} g6 {[%emt 0:06:56]} 13. Bb2 {[%emt 0:08:50]} Ng7 {[%emt 0:12:28]} 14. Nfd2 {[%emt 0:11:15]} Ne6 {[%emt 0:00:37]} 15. Re1 {[%emt 0:00:49]} a5 {[%emt 0:02:41]} 16. Nf1 {[%emt 0:01:09]} Ned4 {[%emt 0:05:38]} 17. Nfe3 {[%emt 0:01:09]} Be6 {[%emt 0:01:47]} 18. Rf1 {[%emt 0:04:15]} Rc8 {[%emt 0:05:08]} 19. Nd5 {[%emt 0:03:39]} h5 {[%emt 0:03:00]} 20. f4 {[%emt 0:04:15]} Bg4 {[%emt 0:02:14]} 21. Qd2 {[%emt 0:02:53]} h4 {[%emt 0:01:07]} 22. Rae1 {[%emt 0:05:42]} h3 {[%emt 0:10:53]} 23. Bh1 {[%emt 0:06:23]} exf4 {[%emt 0:00:06]} 24. Nxf4 {[%emt 0:00:21]} Ne5 {[%emt 0:01:25]} 25. Bxd4 {[%emt 0:01:56]} cxd4 {[%emt 0:00:09]} 26. Qf2 {[%emt 0:00:35]} Bf6 {[%emt 0:05:00]} 27. Nh5 {[%emt 0:11:26]} Bh8 {[%emt 0:00:38]} 28. Nf6+ {[%emt 0:00:07]} Bxf6 {[%emt 0:00:05]} 29. Qxf6 {[%emt 0:00:20]} Qxf6 {[%emt 0:00:11]} 30. Rxf6 {[%emt 0:00:01]} Rfd8 {[%emt 0:00:21]} 31. Ref1 {[%emt 0:00:42]} Rc7 {[%emt 0:01:25]} 32. Kf2 {[%emt 0:02:21]} Kg7 {[%emt 0:00:27]} 33. Ke1 {[%emt 0:00:01]} Be6 {[%emt 0:00:28]} 34. R6f2 {[%emt 0:04:07]} Ng4 {[%emt 0:00:37]} 35. Rd2 {[%emt 0:03:25]} Rc5 {[%emt 0:00:03]} 36. Bf3 {[%emt 0:00:57]} Ne5 37. Kd1 {[%emt 0:01:03]} Nxf3 {[%emt 0:00:13]} 38. Rxf3 {[%emt 0:00:02]} Bg4 {[%emt 0:00:06]} 39. Rdf2 {[%emt 0:00:25]} Rd7 {[%emt 0:01:58]} 40. Kd2 {[%emt 0:00:13]} Bxf3 {[%emt 0:00:06]} 41. Rxf3 {[%emt 0:00:03]} d5 {[%emt 0:01:10]} 42. exd5 {[%emt 0:00:57]} Rdxd5 {[%emt 0:01:05]} 43. g4 {[%emt 0:02:38]} Rg5 {[%emt 0:01:25]} 44. Rf4 {[%emt 0:01:59]} f5 {[%emt 0:03:49]} 45. Rxd4 {[%emt 0:01:44]} Rxg4 {[%emt 0:02:10]} 46. Rd7+ {[%emt 0:02:07]} Kf6 {[%emt 0:00:52]} 47. Ne3 {[%emt 0:00:30]} 0-1

[Event "VI Sunway Sitges Open 2019"]
[Site "Sitges"]
[Date "2019.12.15"]
[Round "3.50"]
[White "Dias, Savin"]
[Black "Han, Yichen"]
[Result "0-1"]
[ECO "C55"]
[WhiteElo "1921"]
[BlackElo "2257"]
[Annotator "NA"]
[PlyCount "41"]
[EventDate "2019.12.13"]
[EventType "swiss"]
[EventCountry "ESP"]
[SourceTitle "playchess.com"]
[Source "ChessBase"]
[SourceQuality "1"]
[TimeControl "40/5400+30:1800+30"]

1. e4 e5 2. Nf3 Nc6 3. Bc4 Nf6 4. d3 Be7 5. O-O O-O 6. Re1 d6 7. h3 Na5 8. Nc3 Nxc4 9. dxc4 b6 10. a4 a5 11. Qd3 c6 12. b3 Nd7 13. Ba3 Nc5 14. Bxc5 bxc5 15. Rad1 Qe8 16. g4 g6 17. Kh1 Kh8 18. Nh2 f5 19. f3 Be6 20. exf5 gxf5 21. f4 0-1

[Event "VI Sunway Sitges Open 2019"]
[Site "Sitges"]
[Date "2019.12.15"]
[Round "3.51"]
[White "Medar, Marti"]
[Black "Perez Puyal, Jose Joaquin"]
[Result "1-0"]
[ECO "A45"]
[WhiteElo "1995"]
[BlackElo "1824"]
[Annotator "NA"]
[PlyCount "63"]
[EventDate "2019.12.13"]
[EventType "swiss"]
[EventCountry "ESP"]
[SourceTitle "playchess.com"]
[Source "ChessBase"]
[SourceQuality "1"]
[TimeControl "40/5400+30:1800+30"]

1. d4 {[%emt 0:00:41]} Nf6 {[%emt 0:02:15]} 2. Bf4 {[%emt 0:00:24]} g6 {[%emt 0:00:00]} 3. Nc3 {[%emt 0:01:53]} d5 {[%emt 0:01:13]} 4. Qd2 {[%emt 0:01:27]} Bf5 {[%emt 0:01:41]} 5. f3 {[%emt 0:00:00]} Bg7 {[%emt 0:02:01]} 6. g4 {[%emt 0:00:32]} Be6 {[%emt 0:01:52]} 7. h4 {[%emt 0:03:48]} Nc6 {[%emt 0:08:30]} 8. h5 {[%emt 0:06:28]} Qd7 {[%emt 0:00:00]} 9. h6 {[%emt 0:00:31]} Bf8 {[%emt 0:00:44]} 10. e3 {[%emt 0:02:30]} a6 {[%emt 0:06:56]} 11. Nh3 {[%emt 0:03:32]} O-O-O {[%emt 0:00:07]} 12. Na4 {[%emt 0:04:06]} Qe8 {[%emt 0:01:35]} 13. Ng5 {[%emt 0:06:10]} Bd7 {[%emt 0:05:43]} 14. O-O-O {[%emt 0:04:01]} e6 {[%emt 0:05:24]} 15. Qh2 {[%emt 0:08:30]} Nb4 {[%emt 0:03:33]} 16. Nc3 {[%emt 0:03:46]} Bd6 {[%emt 0:08:02]} 17. Bxd6 {[%emt 0:00:32]} cxd6 {[%emt 0:00:07]} 18. Qxd6 {[%emt 0:02:09]} Nc6 {[%emt 0:02:26]} 19. Na4 {[%emt 0:00:00]} b5 {[%emt 0:03:23]} 20. Nc5 {[%emt 0:02:10]} Qf8 {[%emt 0:04:00]} 21. Qxf8 {[%emt 0:02:55]} Rhxf8 {[%emt 0:00:02]} 22. Nxa6 {[%emt 0:00:21]} Na5 {[%emt 0:01:56]} 23. b3 {[%emt 0:01:11]} Kb7 {[%emt 0:00:51]} 24. Nc5+ {[%emt 0:00:08]} Kb6 {[%emt 0:00:19]} 25. Kb2 {[%emt 0:00:41]} Nb7 {[%emt 0:00:27]} 26. Nd3 {[%emt 0:01:04]} Nd6 {[%emt 0:01:19]} 27. Ne5 {[%emt 0:00:33]} Bc6 {[%emt 0:01:27]} 28. a3 {[%emt 0:06:46]} Ra8 {[%emt 0:03:18]} 29. Bg2 {[%emt 0:03:43]} Ra7 {[%emt 0:01:07]} 30. Nxc6 {[%emt 0:03:59]} Kxc6 {[%emt 0:00:00]} 31. e4 {[%emt 0:00:11]} dxe4 {[%emt 0:00:00]} 32. fxe4 {[%emt 0:00:06]} 1-0

[Event "VI Sunway Sitges Open 2019"]
[Site "Sitges"]
[Date "2019.12.15"]
[Round "3.52"]
[White "Peredo Claros, Luis Gabriel"]
[Black "Dias, Ruwan"]
[Result "1/2-1/2"]
[ECO "C01"]
[WhiteElo "1778"]
[BlackElo "1305"]
[Annotator "NA"]
[PlyCount "77"]
[EventDate "2019.12.13"]
[EventType "swiss"]
[EventCountry "ESP"]
[SourceTitle "playchess.com"]
[Source "ChessBase"]
[SourceQuality "1"]
[TimeControl "40/5400+30:1800+30"]

1. e4 {[%emt 0:05:50]} e6 {[%emt 0:00:00]} 2. d4 {[%emt 0:00:14]} d5 {[%emt 0:00:00]} 3. exd5 {[%emt 0:00:19]} exd5 {[%emt 0:00:00]} 4. c3 {[%emt 0:00:14]} Bd6 {[%emt 0:00:00]} 5. Bd3 {[%emt 0:00:31]} Nf6 {[%emt 0:00:41]} 6. Bg5 {[%emt 0:00:26]} O-O {[%emt 0:00:24]} 7. Ne2 {[%emt 0:00:13]} Be6 {[%emt 0:02:37]} 8. h3 {[%emt 0:00:14]} c5 {[%emt 0:09:18]} 9. O-O {[%emt 0:01:33]} c4 {[%emt 0:01:54]} 10. Bc2 {[%emt 0:00:30]} Be7 {[%emt 0:00:30]} 11. Ng3 {[%emt 0:00:30]} h6 {[%emt 0:00:30]} 12. Bxf6 {[%emt 0:00:30]} Bxf6 {[%emt 0:00:30]} 13. f4 {[%emt 0:00:30]} Qc7 {[%emt 0:00:30]} 14. Nh5 {[%emt 0:00:30]} Qe7 {[%emt 0:00:30]} 15. f5 {[%emt 0:00:30]} Bd7 {[%emt 0:00:30]} 16. Re1 {[%emt 0:00:30]} Qd8 {[%emt 0:00:30]} 17. Qf3 {[%emt 0:00:30]} Bc6 {[%emt 0:00:30]} 18. Qg4 {[%emt 0:00:30]} Nd7 {[%emt 0:00:30]} 19. Nd2 {[%emt 0:00:30]} b5 {[%emt 0:00:30]} 20. Nf3 {[%emt 0:00:30]} Qc7 {[%emt 0:00:30]} 21. Re3 {[%emt 0:00:30]} Kh8 {[%emt 0:00:30]} 22. Rae1 {[%emt 0:00:30]} Rg8 {[%emt 0:00:30]} 23. Ne5 {[%emt 0:00:30]} Nxe5 {[%emt 0:00:30]} 24. dxe5 {[%emt 0:00:30]} Bg5 {[%emt 0:00:30]} 25. R3e2 {[%emt 0:00:30]} Rae8 {[%emt 0:00:30]} 26. h4 {[%emt 0:00:30]} Be7 {[%emt 0:00:30]} 27. f6 {[%emt 0:00:30]} Bc5+ {[%emt 0:00:30]} 28. Kh1 {[%emt 0:00:30]} g6 {[%emt 0:44:49]} 29. Ng7 {[%emt 0:08:01]} Rxg7 {[%emt 0:00:30]} 30. fxg7+ {[%emt 0:00:30]} Kxg7 {[%emt 0:01:50]} 31. h5 {[%emt 0:00:23]} Bd7 {[%emt 0:00:30]} 32. e6 {[%emt 0:00:30]} Bxe6 {[%emt 0:00:30]} 33. Rxe6 {[%emt 0:00:30]} Rxe6 {[%emt 0:02:50]} 34. Rxe6 {[%emt 0:01:34]} fxe6 {[%emt 0:00:30]} 35. Qxg6+ {[%emt 0:00:30]} Kf8 {[%emt 0:00:30]} 36. Qxe6 {[%emt 0:00:30]} Qg3 {[%emt 0:00:30]} 37. Qc8+ {[%emt 0:00:30]} Kg7 {[%emt 0:00:30]} 38. Qxc5 {[%emt 0:00:30]} Qh4+ {[%emt 0:00:30]} 39. Kg1 {[%emt 0:00:30]} 1/2-1/2

[Event "VI Sunway Sitges Open 2019"]
[Site "Sitges"]
[Date "2019.12.15"]
[Round "3.53"]
[White "Bonnaffe, Xavier"]
[Black "Minko, Uliana"]
[Result "1/2-1/2"]
[ECO "C01"]
[WhiteElo "1556"]
[BlackElo "1311"]
[Annotator "NA"]
[PlyCount "65"]
[EventDate "2019.12.13"]
[EventType "swiss"]
[EventCountry "ESP"]
[SourceTitle "playchess.com"]
[Source "ChessBase"]
[SourceQuality "1"]
[TimeControl "40/5400+30:1800+30"]

1. e4 {[%emt 0:00:00]} e6 {[%emt 0:00:00]} 2. d4 {[%emt 0:00:00]} d5 {[%emt 0:00:00]} 3. exd5 {[%emt 0:00:03]} exd5 {[%emt 0:00:00]} 4. Nf3 {[%emt 0:00:14]} Nf6 {[%emt 0:00:12]} 5. Bd3 {[%emt 0:00:22]} Be7 {[%emt 0:00:25]} 6. O-O {[%emt 0:00:47]} O-O {[%emt 0:02:25]} 7. Bg5 {[%emt 0:02:54]} Ne4 {[%emt 0:00:00]} 8. Bxe7 {[%emt 0:00:49]} Qxe7 {[%emt 0:00:00]} 9. Re1 {[%emt 0:00:36]} Re8 {[%emt 0:00:00]} 10. Nbd2 {[%emt 0:00:46]} f5 {[%emt 0:00:00]} 11. c4 {[%emt 0:06:54]} c6 {[%emt 0:00:48]} 12. Ne5 Be6 13. f3 Nxd2 {[%emt 0:00:26]} 14. Qxd2 {[%emt 0:09:22]} Qf8 {[%emt 0:02:04]} 15. Qc2 {[%emt 0:07:31]} Nd7 16. c5 {[%emt 0:00:00]} Nxe5 {[%emt 0:02:30]} 17. Rxe5 {[%emt 0:01:21]} Bd7 {[%emt 0:00:36]} 18. Rae1 {[%emt 0:05:39]} Rxe5 {[%emt 0:00:17]} 19. Rxe5 {[%emt 0:01:41]} g6 {[%emt 0:00:26]} 20. Qe2 {[%emt 0:03:34]} b5 {[%emt 0:01:04]} 21. Re7 {[%emt 0:00:30]} Re8 {[%emt 0:00:30]} 22. Rxe8 {[%emt 0:00:30]} Bxe8 {[%emt 0:00:30]} 23. f4 {[%emt 0:13:31]} Bd7 {[%emt 0:02:34]} 24. g3 {[%emt 0:00:30]} Qf6 {[%emt 0:00:30]} 25. Qe5 {[%emt 0:00:30]} Qd8 {[%emt 0:00:30]} 26. b4 {[%emt 0:00:30]} a6 {[%emt 0:00:30]} 27. Kf2 {[%emt 0:00:30]} Kf7 {[%emt 0:00:30]} 28. Qe3 {[%emt 0:00:30]} a5 {[%emt 0:00:30]} 29. a3 {[%emt 0:00:30]} axb4 {[%emt 0:00:30]} 30. axb4 {[%emt 0:00:30]} Qa8 {[%emt 0:00:30]} 31. Qd2 {[%emt 0:14:10]} Qa1 {[%emt 0:05:26]} 32. Bf1 {[%emt 0:00:30]} h5 {[%emt 0:00:30]} 33. h4 {[%emt 0:00:30]} 1/2-1/2

[Event "VI Sunway Sitges Open 2019"]
[Site "Sitges"]
[Date "2019.12.15"]
[Round "3.54"]
[White "Naga Laxmi Seelam"]
[Black "Ananya Parikh"]
[Result "1/2-1/2"]
[ECO "B56"]
[WhiteElo "1196"]
[BlackElo "1498"]
[Annotator "NA"]
[PlyCount "99"]
[EventDate "2019.12.13"]
[EventType "swiss"]
[EventCountry "ESP"]
[SourceTitle "playchess.com"]
[Source "ChessBase"]
[SourceQuality "1"]
[TimeControl "40/5400+30:1800+30"]

1. e4 {[%emt 3:39:25]} c5 {[%emt 0:00:04]} 2. Nf3 {[%emt 0:00:10]} d6 {[%emt 0:00:14]} 3. d4 {[%emt 0:00:06]} cxd4 {[%emt 0:00:06]} 4. Nxd4 {[%emt 0:00:04]} Nf6 {[%emt 0:00:13]} 5. Nc3 {[%emt 0:00:15]} Nc6 {[%emt 0:00:04]} 6. Be3 {[%emt 0:00:07]} Ng4 {[%emt 0:00:19]} 7. Qd2 {[%emt 0:01:12]} Nxe3 {[%emt 0:00:14]} 8. Qxe3 {[%emt 0:00:26]} e6 {[%emt 0:06:45]} 9. Bb5 {[%emt 0:02:33]} Bd7 {[%emt 0:02:09]} 10. O-O {[%emt 0:04:00]} a6 11. Bd3 {[%emt 0:08:11]} Qb6 12. Nxc6 {[%emt 0:08:31]} Qxe3 13. fxe3 {[%emt 0:07:38]} Bxc6 14. Rf2 {[%emt 0:04:22]} Be7 15. Raf1 {[%emt 0:01:59]} O-O 16. Ne2 {[%emt 0:03:09]} Bh4 17. g3 Bg5 18. Nf4 {[%emt 0:31:03]} e5 19. Ng2 {[%emt 0:03:22]} b5 20. c4 {[%emt 0:12:44]} Ra7 {[%emt 0:06:40]} 21. cxb5 {[%emt 0:01:18]} Bxb5 {[%emt 0:01:46]} 22. Bxb5 {[%emt 0:00:36]} axb5 {[%emt 0:00:02]} 23. b3 {[%emt 0:02:03]} Rfa8 {[%emt 0:03:29]} 24. Rc1 {[%emt 0:01:09]} h6 {[%emt 0:01:52]} 25. Rcc2 {[%emt 0:00:20]} Rd7 {[%emt 0:08:19]} 26. h4 {[%emt 0:00:54]} Bd8 {[%emt 0:01:35]} 27. Rfd2 {[%emt 0:01:11]} Kf8 {[%emt 0:09:23]} 28. Rd5 {[%emt 0:02:33]} Rb8 {[%emt 0:01:58]} 29. Ne1 {[%emt 0:00:59]} Ke7 {[%emt 0:01:54]} 30. Nf3 {[%emt 0:00:42]} Rbb7 {[%emt 0:01:26]} 31. Kf2 {[%emt 0:00:47]} b4 {[%emt 0:03:44]} 32. Ke2 {[%emt 0:01:23]} Rdc7 {[%emt 0:00:42]} 33. Rcd2 {[%emt 0:00:15]} Rd7 {[%emt 0:00:39]} 34. Rc2 {[%emt 0:00:25]} f6 {[%emt 0:00:13]} 35. Rcd2 {[%emt 0:01:41]} Rb6 {[%emt 0:00:59]} 36. g4 {[%emt 0:01:08]} Rc7 {[%emt 0:00:45]} 37. g5 {[%emt 0:00:52]} Rc1 {[%emt 0:00:43]} 38. gxf6+ {[%emt 0:01:17]} gxf6 {[%emt 0:00:03]} 39. Rd1 {[%emt 0:01:15]} Rxd1 {[%emt 0:00:36]} 40. Kxd1 {[%emt 0:00:25]} Ra6 {[%emt 0:00:56]} 41. Rb5 {[%emt 0:00:35]} Rxa2 {[%emt 0:13:19]} 42. Rxb4 {[%emt 0:00:16]} Rf2 {[%emt 0:00:25]} 43. Ne1 {[%emt 0:00:29]} Rh2 {[%emt 0:01:27]} 44. Nf3 {[%emt 0:00:34]} Rf2 {[%emt 0:00:30]} 45. Ne1 {[%emt 0:00:10]} Rf1 {[%emt 0:06:20]} 46. Rb7+ {[%emt 0:00:20]} Ke6 {[%emt 0:00:31]} 47. Ke2 {[%emt 0:01:07]} Rh1 {[%emt 0:00:02]} 48. Nf3 {[%emt 0:00:02]} f5 {[%emt 0:00:04]} 49. exf5+ Kxf5 50. Rd7 {[%emt 0:00:02]} 1/2-1/2